Cogmind - Beta 14 @@@ ROGUE MODE // 2024.11.03 @ 17:12:29 Player: Shimmyarah Result: Destroyed by Y-45 Defender with Heavy Assault Rifle Performance ------------- Evolutions (1) 500 Regions Visited (3) 600 Robots Destroyed (11) 55 Value Destroyed (270) 270 Prototype IDs (0) 0 Alien Tech Used (0) 0 Bonus (0) 0 TOTAL SCORE: 1425 Bonus ------- None Cogmind --------- Core Integrity 0/400 Matter 300/300 Energy 99/100 System Corruption 0% Temperature Cool (15) Movement Core (50) Location -9/Storage Parts ------- > --- POWER (1) -------- (None) > --- PROPULSION (2) --- (None) > --- UTILITY (3) ------ Targeting Computer ECM Suite > --- WEAPON (3) ------- (None) > --- INVENTORY (5) ---- Light Ion Engine Wheel Peak State ------------ > --- POWER ------------ Ion Engine > --- PROPULSION ------- Light Treads VSS Leg > --- UTILITY ---------- Improved Terrain Scanner Targeting Computer ECM Suite > --- WEAPON ----------- EM Pulse Gun Light EM Pulse Cannon Light Assault Rifle > --- INVENTORY -------- Light Ion Engine Wheel Terrain Scan Processor [Rating: 14] Favorites ----------- Power Ion Engine Engine Ion Engine Propulsion Light Treads Treads Light Treads Leg VSS Leg Wheel Wheel Utility Targeting Computer Device ECM Suite Processor Targeting Computer Weapon EM Pulse Gun Energy Gun EM Pulse Gun Energy Cannon Light EM Pulse Cannon Ballistic Gun Light Assault Rifle Build | -11 -10 -9 -9 ------- Run | Yrd Mat Mat Sto Slots Evolved 2 | . . 2 . Power . | . . . . Propulsion . | . . . . Utility 1 | . . 1 . Weapon 1 | . . 1 . Parts Attached 11 | 5 2 4 . Power 1 | 1 . . . Engine 1 | 1 . . . Core . | . . . . Reactor . | . . . . Propulsion 3 | 2 . 1 . Treads 1 | 1 . . . Leg 1 | . . 1 . Wheel 1 | 1 . . . Hover . | . . . . Flight . | . . . . Utility 3 | . 2 1 . Device 2 | . 1 1 . Storage . | . . . . Processor 1 | . 1 . . Hackware . | . . . . Protection . | . . . . Artifact . | . . . . Weapon 4 | 2 . 2 . Energy Gun 1 | 1 . . . Energy Cannon 1 | . . 1 . Ballistic Gun 2 | 1 . 1 . Ballistic Cannon . | . . . . Launcher . | . . . . Special Weapon . | . . . . Impact Weapon . | . . . . Slashing Weapon . | . . . . Piercing Weapon . | . . . . Special Melee Weapon . | . . . . Unidentified Prototypes . | . . . . Parts Lost 7 | . . . 7 Power 1 | . . . 1 Propulsion 2 | . . . 2 Utility 1 | . . . 1 Weapon 3 | . . . 3 Highest Loss Streak 6 | . . . 6 To Critical Strikes . | . . . . Average Slot Usage (%) 80 | . 79 89 52 Engine 10 | . 14 11 2 Treads 11 | . 14 11 4 Leg 3 | . . 4 8 Wheel 8 | . 14 6 . Device 11 | . 3 15 16 Processor 8 | . 3 11 11 Energy Gun 10 | . 14 11 2 Energy Cannon 4 | . . 8 4 Ballistic Gun 10 | . 14 10 3 Peak Build Rating 14 | 5 7 14 14 Average Rating 8 | 3 5 10 7 On Entrance 6 | . 5 7 14 Naked Turns . | . . . . Heaviest Build 15 | 8 10 15 15 Greatest Support 20 | 20 20 20 12 Greatest Overweight (x) 1 | . . 1 1 Average Overweight (x) . | . . . . Largest Inventory Capacity 5 | 5 5 5 5 Average Capacity 5 | 5 5 5 5 Most Carried 5 | 5 3 4 2 Average Carried 1 | . 1 1 2 Final Capacity 5 | 5 5 5 5 Final Carried 2 | . 1 2 2 Class Distribution -------------------- 60% | Mutant 39% | Gunner Dominant Class ---------------- Mutant | -10/Materials Gunner | -9/Materials Mutant | -9/Storage Resources | -11 -10 -9 -9 ----------- Run | Yrd Mat Mat Sto Matter Collected 327 | 215 44 68 . Remotely . | . . . . Salvage Created 303 | . 81 139 83 Parts 27 | . 11 11 5 Haulers Intercepted . | . . . . Recyclers Shooed . | . . . . Parts Field Recycled . | . . . . Retrieved Matter . | . . . . Parts Self-Destructed . | . . . . Prevented . | . . . . Kills | -11 -10 -9 -9 ------- Run | Yrd Mat Mat Sto Combat Hostiles Destroyed 8 | . 3 3 2 Melee 1 | . . . 1 Guns 4 | . 3 1 . Cannons 3 | . . 2 1 Classes Destroyed 5 | . 2 2 1 Operator 1 | . . 1 . Watcher 2 | . 1 . 1 Swarmer 3 | . 3 . . Grunt 3 | . . 3 . Sentry 2 | . . . 2 Best Kill Streak 3 | . 3 2 2 Combat Bots Only 3 | . 3 2 1 Max Kills in Single Turn 1 | . 1 1 1 Gunslinging . | . . . . Exploded . | . . . . Melee 1 | . . . 1 Uniques/NPCs Destroyed . | . . . . Combat | -11 -10 -9 -9 -------- Run | Yrd Mat Mat Sto Hostile Shots Fired 97 | . 8 12 77 Missed 24 | . 3 2 19 Damage Taken 1006 | . 43 112 851 Core 410 | . . 21 389 Absorbed by Shields . | . . . . Regen/Repaired (Parts) 17 | . . 17 . Core Remaining (%) 100 | 100 100 . . Volleys Fired 23 | . 9 8 6 Largest 3 | . 2 3 3 Hottest 116 | . 60 116 116 Shots Fired 55 | . 18 22 15 Gun 43 | . 18 16 9 Cannon 12 | . . 6 6 Launcher . | . . . . Special . | . . . . Kinetic 23 | . 9 8 6 Thermal . | . . . . Explosive . | . . . . Electromagnetic 32 | . 9 14 9 Robot Hit Streak 11 | . 2 3 11 Robot Miss Streak 2 | . 1 2 . Penetration Max . | . . . . Secondary Targets . | . . . . Shots Hit Robots 24 | . 5 11 8 Core Hits 28 | . 4 7 17 Critical Kills . | . . . . Critical Parts Destroyed . | . . . . Critical Strikes . | . . . . Melee Attacks . | . . . . Impact . | . . . . Slashing . | . . . . Piercing . | . . . . Sneak Attacks . | . . . . Combat Hostiles . | . . . . Follow-up Attacks . | . . . . Damage Inflicted 575 | . 58 264 253 Guns 214 | . 58 111 45 Cannons 229 | . . 111 118 Explosions 42 | . . 42 . Melee . | . . . . Ramming 90 | . . . 90 Kinetic 58 | . 24 22 12 Thermal 42 | . . 42 . Explosive . | . . . . Electromagnetic 385 | . 34 200 151 Impact . | . . . . Slashing . | . . . . Piercing . | . . . . Highest Corruption . | . . . . Average Corruption . | . . . . Corruption Purged . | . . . . Corruption Blocked . | . . . . Overload Shots . | . . . . Overflow Damage 6 | . . 6 . Projectiles 6 | . . 6 . Explosions . | . . . . Melee . | . . . . Knockbacks . | . . . . Impact . | . . . . Kinetic . | . . . . Secondary . | . . . . Self-Inflicted Damage 8 | . . . 8 Shots . | . . . . Rammed 2 | . . . 2 Targets Rammed 47 | . . . 47 Kicked 45 | . . . 45 Crushed . | . . . . Highest Temperature 225 | . 40 204 225 Average Temperature 69 | . 22 72 105 Received Heat Transfer 384 | . . 60 324 Siege Activations . | . . . . Robots Corrupted . | . . . . Combat Hostiles . | . . . . Parts Fried 3 | . . . 3 Impact Corruptions . | . . . . Robots Melted . | . . . . Combat Hostiles . | . . . . Parts Melted . | . . . . Heat Transferred 100 | . . 100 . Parts Sabotaged . | . . . . Parts Stolen . | . . . . Parts Stripped . | . . . . Power Chain Reactions 1 | . . 1 . Alert | -11 -10 -9 -9 ------- Run | Yrd Mat Mat Sto Peak Influence 79 | . 79 57 60 Initial 21 | . . . 21 Average 37 | . 62 23 33 Maximum Alert Level . | . . . . Low Security (%) 100 | 100 100 100 100 Level 1 . | . . . . Level 2 . | . . . . Level 3 . | . . . . Level 4 . | . . . . Level 5 . | . . . . High Security . | . . . . Max Security . | . . . . Squads Dispatched 2 | . . 1 1 Investigation . | . . . . Extermination . | . . . . Reinforcement 2 | . . 1 1 Assault . | . . . . Garrison . | . . . . Intercept . | . . . . Searches Triggered . | . . . . Construction Impeded . | . . . . Haulers Reinforced . | . . . . Active Scanning Responses . | . . . . Cargo Convoy Interrupts . | . . . . Stealth | -11 -10 -9 -9 --------- Run | Yrd Mat Mat Sto Distress Signals 1 | . . . 1 Communications Jammed . | . . . . Distress Signals . | . . . . Times Spotted 21 | . 5 7 9 Peak Tracking Total 4 | . 3 3 4 Tactical Retreats . | . . . . Traps | -11 -10 -9 -9 ------- Run | Yrd Mat Mat Sto Traps Triggered . | . . . . Indirectly . | . . . . Trap Hack Attempts . | . . . . Triggered . | . . . . Disarmed . | . . . . Reprogrammed . | . . . . Reused . | . . . . Traps Extracted . | . . . . Installed . | . . . . Triggered . | . . . . Machines | -11 -10 -9 -9 ---------- Run | Yrd Mat Mat Sto Machines Disabled . | . . . . Max in Single Turn . | . . . . Machines Repaired . | . . . . Machines Dismantled . | . . . . Machines Sabotaged . | . . . . Overloaded Fab Kills . | . . . . Hacking | -11 -10 -9 -9 --------- Run | Yrd Mat Mat Sto Machines Accessed 4 | . 1 3 . Terminals 2 | . 1 1 . Fabricators . | . . . . Repair Stations 1 | . . 1 . Recycling Units . | . . . . Scanalyzers 1 | . . 1 . Garrison Access . | . . . . Total Hacks 9 | . 2 7 . Successful 8 | . 2 6 . Failed 1 | . . 1 . Catastrophic . | . . . . Database Lockouts . | . . . . Manual . | . . . . Terminals 4 | . 2 2 . Fabricators . | . . . . Repair Stations 4 | . . 4 . Recycling Units . | . . . . Scanalyzers 1 | . . 1 . Garrison Access . | . . . . Terminal Hacks 4 | . 2 2 . Record 4 | . 2 2 . Fabricator Hacks . | . . . . Repair Station Hacks 4 | . . 4 . Scan Component 2 | . . 2 . Repair 2 | . . 2 . Recycling Unit Hacks . | . . . . Scanalyzer . | . . . . Garrison Access Hacks . | . . . . Unauthorized Hacks . | . . . . Terminals . | . . . . Fabricators . | . . . . Repair Stations . | . . . . Recycling Units . | . . . . Scanalyzers . | . . . . Garrison Access . | . . . . Data Cores Recovered . | . . . . Used . | . . . . Hacking Detections 2 | . 1 1 . Full Trace Events . | . . . . Feedback Events . | . . . . Feedback Blocked . | . . . . Robot Schematics Acquired . | . . . . Robots Built . | . . . . Authchips . | . . . . Time . | . . . . Total Robot Build Rating . | . . . . Part Schematics Acquired . | . . . . Parts Built . | . . . . Authchips . | . . . . Time . | . . . . Total Part Build Rating . | . . . . Parts Repaired 2 | . . 2 . Time 52 | . . 52 . Parts Recycled . | . . . . Recycled Matter . | . . . . Retrieved Matter . | . . . . Retrieved Components . | . . . . Parts Scanalyzed . | . . . . Part Schematics Acquired . | . . . . Parts Damaged . | . . . . Bothacking | -11 -10 -9 -9 ------------ Run | Yrd Mat Mat Sto Used RIF Installer . | . . . . Robots Hacked . | . . . . Non-combat . | . . . . Combat . | . . . . Robot Hacks Applied . | . . . . Relay Couplers Released . | . . . . Fabnet Peak Effective % . | . . . . Robots Rewired . | . . . . Allies Hacked . | . . . . Hacks Repelled . | . . . . Allies | -11 -10 -9 -9 -------- Run | Yrd Mat Mat Sto Total Allies . | . . . . Largest Group . | . . . . Highest-Rated Group . | . . . . Highest-Rated Ally . | . . . . Total Orders . | . . . . Ally Attacks . | . . . . Total Damage . | . . . . Kills . | . . . . Allies Corrupted . | . . . . Allies Melted . | . . . . Intel | -11 -10 -9 -9 ------- Run | Yrd Mat Mat Sto Robot Analysis Total . | . . . . Derelict Logs Recovered . | . . . . Drone Launches . | . . . . Drone Recoveries . | . . . . Exploration | -11 -10 -9 -9 ------------- Run | Yrd Mat Mat Sto Turns Passed 1281 | 46 426 622 187 Spaces Moved 793 | 36 248 351 158 Core 107 | 19 . . 88 Treads 481 | 17 248 216 . Legs 205 | . . 135 70 Wheels . | . . . . Hover . | . . . . Flight . | . . . . Fastest Speed 50 | 50 160 160 50 Average Speed 144 | 101 160 167 77 Slowest Speed 180 | 160 160 180 180 Overloaded Moves . | . . . . Propulsion Burnouts . | . . . . Robots Hopped . | . . . . Cave-ins Triggered . | . . . . Exploration Rate (%) 19 | 3 30 24 22 Regions Visited 3 Branch Regions 1 Pre-discovered Areas . | . . . . Known Exits Taken . | . . . . Unknown Exits Taken 3 | 1 1 1 . Scrap Searched . | . . . . Spaces Dug . | . . . . Terrain Destroyed 1 | . . 1 . Melee . | . . . . Projectile . | . . . . AOE 1 | . . 1 . Terrain Rammed . | . . . . Walls Destroyed . | . . . . Machines Disabled . | . . . . Actions | -11 -10 -9 -9 --------- Run | Yrd Mat Mat Sto Total 886 | 45 261 369 211 Wait . | . . . . Move 790 | 35 247 350 158 Hop . | . . . . Pick Up 14 | 5 3 6 . Fast Attach . | . . . . Attach 10 | 5 2 3 . Detach . | . . . . Swap 1 | . . 1 . Drop 1 | . . 1 . Fire 23 | . 9 8 6 Melee . | . . . . Ram 2 | . . . 2 Kick 45 | . . . 45 Crush . | . . . . Escape Stasis . | . . . . Rewire . | . . . . Trap . | . . . . Miscellaneous . | . . . . Route ------- -11/Scrapyard -10/Materials -9/Materials -9/Storage History --------- Turn | Location | Event 2 | -11/Scrapyard | Met Revision 17 15 | -11/Scrapyard | Discovered new exit (range 15) 47 | -11/Scrapyard | Entered Materials 313 | -10/Materials | Discovered new exit (range 14) 314 | -10/Materials | Build established: Mutant 473 | -10/Materials | Entered another Materials area 473 | -9/Materials | Evolved 2 slots: Utility x1, Weapon x1 568 | -9/Materials | Discovered new exit (range 14) 599 | -9/Materials | Repaired Lgt. Ion Engine 629 | -9/Materials | Repaired Lgt. Assault Rifle 938 | -9/Materials | Build established: Gunner 1095 | -9/Materials | Entered Storage 1219 | -9/Storage | Lost 6 parts (1p1n1u3w) 1237 | -9/Storage | Core integrity fell below 50% 1278 | -9/Storage | Core integrity fell below 20% 1282 | -9/Storage | Destroyed by Y-45 Defender with Heavy Assault Rifle Last Messages --------------- 01177_ R-06 Scavenger inserts Lgt. Armor Plating into recycling unit. 01178_ Kicked Y-45 Defender. 01180_ R-06 Scavenger inserts Corrupted Lgt. Treads into recycling unit. 01181_ Kicked Y-45 Defender. 01186_ Kicked Y-45 Defender out of the way. 01187_ Kicked Y-45 Defender. 01188_ Imp. Terrain Scanner destroyed. 01189_ Kicked Y-45 Defender. 01189_ Y-45 Defender destroyed. 01214_ Kicked R-06 Scavenger. 01215_ O-16 Technician: "IFF HANDSHAKE FAILED. SECURING TERMINAL." 01223_ ALERT: Hostiles spotted, dispatching reinforcements to Terminal S011. 01236_ VSS Leg destroyed. 01251_ Slammed into U-05 Engineer. 01275_ Slammed into G-47 Trooper. 01279_ Critical hit (Burn: +37). Map ----- +----------------------------------------------------+ | ????????????????????????????????????????????????? | | ????????????????????????????????????????????????? | | ????????????????????????????????????????????????? | | ????????????????????????????????????????????????? | | ????????????????????????????????????????????????? | | ????????????????????????????????????????????????? | | ????????????????????????????????????????????????? | | ?????????????????????????????#??????????????????? | | ????????????????????#???????????????????????????? | | ??????????????????????????#?????????????????????? | | ????????????????????#?????????????? ????????????? | | ???????????????????#????""""#?????????????????? | | ?????????????????#?????#""R"#?????????????????? | | ????????????????#??#?###"" "###???????????????? | | ??????????????????#### #???????????????" | | ????????????#??????#"" """ #???????????????" | | ???????????????????#"T """ #??????? ??????? | | ???????????????????#"" """ #??????????????? | | ?????????????????????# #??????????????# | | ?????????????????????# #??????????????# | | ?????????????#??#???## "Y" #??????????????# | | ???????#?????#??????#%%"""% #??#????? ?????# | | ????????????????????##%%%%%% #???##?????????# | | ???????###################+################### | | ???????# %%g | | ???????# @ %g # | | ???????# ^%g Y% % # | | ???????################;#########+#########/###+# | | ????????????????????? ?????? ?? # # | | ??????????????????#? [ ????? ""???# """ """ # | | ??????????????????# m ??? """??# """ """ # | | ??????????????????# // #?? """??# """ """ # | | ???????????#?#????#""" /! T? """ ?# """ # | | ??????????????????#"R ## """ ?# = """ # | | ???????????????#??#""" ## ??? ?# # | | ???????????????#???? ## ?????# # | | ?#??????????????????########## ?????###"T"### # | | ??????????????#?????????????#?##????????####????# | | | | | | | | | | | | | | | | | | | | | | | | | +----------------------------------------------------+ Best States ------------- Heat Dissipation 28 Energy Generation 10 Energy Capacity 250 Matter Stores 300 Matter Capacity 300 Sight Range 16 Terrain Scan Range 16 Terrain Scan Density 10 ECM Strength 1 Evasion (%) 57 Targeting Accuracy 5 Recoil Reduction 1 Item Schematics ----------------- None Robot Schematics ------------------ None Fabricated ------------ Nothing Alien Tech Used ----------------- None Achievements -------------- None Challenges ------------ None Game ------ Seed MetafiberNeutronNukerbomber Manual? 0 Play Time 00:16:00 Cumulative 3.0 hours Start 2024.11.03 @ 12:50:21 End 2024.11.03 @ 17:12:29 Sessions 3 Manual Loads 0 Difficulty Rogue Special Mode None Game No. 5 Rogue 5 Adventurer 0 Explorer 0 Win Type - Total 0 Types 0/0/0/0/0/0/0/0/0 Lore% 6 Gallery% 5 Achievement% 5 Wizard Run 0 Options --------- Layout 1 ASCII 0 Keyboard 0 Movement Arrows Keybinds 0 Fullscreen 1 Font 24/Smallcaps Map View 25x20 Zoom Use 61% Tactical HUD 1 Map Filters NONE Filters NONE Steam 1 RUN: 9a9ad03c-1f79-427f-8a66-296a67dcf203